fUSD/lending_fUSD_20240825
["ID","MTS","AMOUNT","RATE_DAILY","PERIOD"]
[335900642,1724578236470,-518.39477195,0.00010989,2]
[335900643,1724578236479,-500.0,0.00010989,2]
[335900644,1724578236489,-500.0,0.00010989,2]
[335900645,1724578236498,-500.0,0.00010989,2]
[335900646,1724578236508,-500.0,0.00010989,2]
[335900647,1724578236518,-500.0,0.00010989,2]
[335900648,1724578236527,-500.0,0.00010989,2]
[335900649,1724578236538,-500.0,0.00010989,2]
[335900650,1724578236547,-500.0,0.00010989,2]
[335900651,1724578236556,-500.0,0.00010989,2]
[335900652,1724578236566,-500.0,0.00010989,2]
[335900653,1724578236576,-500.0,0.00010989,2]
[335900654,1724578236585,-500.0,0.00010989,2]
[335900655,1724578236595,-500.0,0.00010989,2]
[335900656,1724578236606,-500.0,0.00010989,2]
[335900657,1724578236617,-151.0,0.00010989,2]
[335900658,1724578236627,-500.0,0.00010989,2]
[335900659,1724578236637,-500.0,0.00010989,2]
[335900660,1724578236648,-500.0,0.00010989,2]
[335900661,1724578236657,-500.0,0.00010989,2]
[335900662,1724578236667,-500.0,0.00010989,2]
[335900663,1724578236676,-500.0,0.00010989,2]
[335900664,1724578236686,-616.95,0.00010989,2]
[335900665,1724578236696,-151.0,0.00010989,2]
[335900666,1724578236706,-987.68,0.00010989,2]
[335900667,1724578236716,-987.68,0.00010989,2]
[335900668,1724578236726,-151.0,0.00010989,2]
[335900669,1724578236735,-500.0,0.00010989,2]
[335900670,1724578236746,-500.0,0.00010989,2]
[335900671,1724578236756,-500.0,0.00010989,2]
[335900672,1724578236766,-500.0,0.00010989,2]
[335900673,1724578236775,-500.0,0.00010989,2]
[335900674,1724578236786,-445.70842748,0.00010989,2]
[335900675,1724578236797,-500.0,0.00010989,2]
[335900676,1724578236806,-500.0,0.00010989,2]
[335900677,1724578236816,-500.0,0.00010989,2]
[335900678,1724578236826,-281.29363816,0.00010989,2]
[335900679,1724578236835,-500.0,0.00010989,2]
[335900680,1724578236845,-290.3692663,0.00010989,2]
[335900681,1724578236861,-209.6307337,0.00010989,2]
[335900682,1724578236870,-138.63349113,0.00010989,2]
[335900685,1724578237975,-513.47900058,0.00010897,2]
[335900686,1724578237985,-361.36650887,0.00010989,2]
[335900687,1724578237995,-500.0,0.00010989,2]
[335900688,1724578238004,-465.09441996,0.00010989,2]
[335900689,1724578238036,-34.90558004,0.00010989,2]
[335900690,1724578238047,-370.88826228,0.00010989,2]
[335900691,1724578238059,-319.93173772,0.00010989,2]
[335900692,1724578238069,-690.82,0.00010989,2]
[335900693,1724578238079,-78.30035081,0.00010989,2]
[335900694,1724578238106,-384.30158449,0.00010989,2]
[335900695,1724578238169,-228.2180647,0.00010989,2]
[335900696,1724578238178,-225.01318282,0.00010989,2]
[335900753,1724578240195,-274.98681718,0.00010989,2]
[335900754,1724578240205,-440.12680208,0.00010989,2]
[335900755,1724578240214,-500.0,0.00010989,2]
[335900756,1724578240224,-500.0,0.00010989,2]
[335900757,1724578240234,-624.46,0.00010989,2]
[335900758,1724578240244,-478.48476746,0.00010989,2]
[335900759,1724578240254,-249.79161328,0.00010989,2]
[335900981,1724578243257,-500.0,0.00010988,2]
[335900982,1724578243269,-250.20838672,0.00010989,2]
[335900983,1724578243281,-500.0,0.00010989,2]
[335900984,1724578243292,-500.0,0.00010989,2]
[335900985,1724578243303,-500.0,0.00010989,2]
[335900986,1724578243315,-500.0,0.00010989,2]
[335900987,1724578243331,-500.0,0.00010989,2]
[335900988,1724578243343,-500.0,0.00010989,2]
[335900989,1724578243354,-500.0,0.00010989,2]
[335900990,1724578243366,-500.0,0.00010989,2]
[335900991,1724578243376,-500.0,0.00010989,2]
[335900992,1724578243388,-500.0,0.00010989,2]
[335900993,1724578243400,-500.0,0.00010989,2]
[335900994,1724578243422,-500.0,0.00010989,2]
[335900995,1724578243436,-500.0,0.00010989,2]
[335900996,1724578243450,-500.0,0.00010989,2]
[335900997,1724578243465,-500.0,0.00010989,2]
[335900999,1724578243478,-500.0,0.00010989,2]
[335901000,1724578243492,-1000.0,0.00010989,2]
[335901001,1724578243503,-500.0,0.00010989,2]
[335901003,1724578243518,-1000.0,0.00010989,2]
[335901005,1724578243529,-500.0,0.00010989,2]
[335901007,1724578243539,-1000.0,0.00010989,2]
[335901009,1724578243549,-1560.95,0.00010989,2]
[335901011,1724578243567,-1560.95,0.00010989,2]
[335901013,1724578243579,-1560.95,0.00010989,2]
[335901015,1724578243590,-2919.17,0.00010989,2]
[335901017,1724578243601,-4276.09,0.00010989,2]
[335901018,1724578243613,-2919.17,0.00010989,2]
[335901019,1724578243625,-2919.17,0.00010989,2]
[335901020,1724578243636,-245.94567871,0.00010989,2]
[335901030,1724578245985,-1433.66,0.00010988,2]
[335901031,1724578245998,-55.41662751,0.00010988,2]
[335901032,1724578246050,-187.71051691,0.00010988,2]
[335901033,1724578246062,-500.0,0.00010988,2]
[335901034,1724578246073,-500.0,0.00010988,2]
[335901035,1724578246086,-1074.27316464,0.00010989,2]
[335901036,1724578246100,-2955.87115665,0.00010989,2]
[335901037,1724578246111,-4276.09,0.00010989,2]
[335901038,1724578246121,-500.0,0.00010989,2]
[335901039,1724578246132,-407.56454294,0.00010989,2]
[335901040,1724578246142,-1459.33,0.00010989,2]
[335901041,1724578246154,-1459.33,0.00010989,2]
[335901042,1724578246167,-1459.33,0.00010989,2]
[335901043,1724578246178,-1016.04,0.00010989,2]
[335901044,1724578246188,-1016.04,0.00010989,2]
[335901045,1724578246199,-1016.04,0.00010989,2]
[335901046,1724578246211,-500.0,0.00010989,2]
[335901047,1724578246222,-500.0,0.00010989,2]
[335901048,1724578246233,-500.0,0.00010989,2]
[335901049,1724578246244,-1159.6,0.00010989,2]
[335901050,1724578246255,-1159.6,0.00010989,2]
[335901051,1724578246265,-500.0,0.00010989,2]
[335901052,1724578246276,-500.0,0.00010989,2]
[335901053,1724578246287,-500.0,0.00010989,2]
[335901054,1724578246298,-1554.17,0.00010989,2]
[335901055,1724578246308,-1554.17,0.00010989,2]
[335901056,1724578246320,-1100.02,0.00010989,2]
[335901057,1724578246338,-1554.17,0.00010989,2]
[335901058,1724578246349,-1100.02,0.00010989,2]
[335901059,1724578246361,-1100.02,0.00010989,2]
[335901060,1724578246372,-707.37,0.00010989,2]
[335901061,1724578246383,-707.37,0.00010989,2]
[335901062,1724578246394,-1579.84,0.00010989,2]
[335901064,1724578246406,-1579.84,0.00010989,2]
[335901066,1724578246417,-1579.84,0.00010989,2]
[335901068,1724578246428,-647.841125,0.00010989,2]
[335901069,1724578246439,-1126.97,0.00010989,2]
[335901070,1724578246450,-1126.97,0.00010989,2]
[335901071,1724578246461,-1126.97,0.00010989,2]
[335901072,1724578246471,-832.76,0.00010989,2]
[335901073,1724578246482,-226.96682906,0.00010989,2]
[335901074,1724578246492,-832.76,0.00010989,2]
[335901075,1724578246502,-500.0,0.00010989,2]
[335901076,1724578246513,-500.0,0.00010989,2]
[335901077,1724578246523,-2527.08,0.00010989,2]
[335901078,1724578246533,-2527.08,0.00010989,2]
[335901079,1724578246544,-2527.08,0.00010989,2]
[335901080,1724578246554,-500.0,0.00010989,2]
[335901081,1724578246565,-500.0,0.00010989,2]
[335901082,1724578246576,-500.0,0.00010989,2]
[335901083,1724578246586,-238.47586367,0.00010989,2]
[335901084,1724578246597,-500.0,0.00010989,2]
[335901085,1724578246607,-500.0,0.00010989,2]
[335901086,1724578246618,-500.0,0.00010989,2]
[335901087,1724578246629,-500.0,0.00010989,2]
[335901088,1724578246639,-500.0,0.00010989,2]
[335901089,1724578246649,-500.0,0.00010989,2]
[335901090,1724578246660,-500.0,0.00010989,2]
[335901091,1724578246670,-1464.81,0.00010989,2]
[335901092,1724578246680,-1464.81,0.00010989,2]
[335901093,1724578246692,-2231.95,0.00010989,2]
[335901094,1724578246703,-2231.95,0.00010989,2]
[335901095,1724578246713,-500.0,0.00010989,2]
[335901096,1724578246723,-500.0,0.00010989,2]
[335901097,1724578246733,-500.0,0.00010989,2]
[335901098,1724578246744,-500.0,0.00010989,2]
[335901099,1724578246754,-6195.58,0.00010989,2]
[335901100,1724578246765,-6195.58,0.00010989,2]
[335901101,1724578246775,-500.0,0.00010989,2]
[335901102,1724578246785,-500.0,0.00010989,2]
[335901103,1724578246795,-500.0,0.00010989,2]
[335901104,1724578246806,-500.0,0.00010989,2]
[335901105,1724578246816,-825.57,0.00010989,2]
[335901106,1724578246826,-825.57,0.00010989,2]
[335901107,1724578246837,-784.03,0.00010989,2]
[335901108,1724578246848,-784.03,0.00010989,2]
[335901109,1724578246858,-500.0,0.00010989,2]
[335901110,1724578246868,-500.0,0.00010989,2]
[335901111,1724578246879,-500.0,0.00010989,2]
[335901112,1724578246890,-500.0,0.00010989,2]
[335901113,1724578246902,-665.52,0.00010989,2]
[335901114,1724578246913,-665.52,0.00010989,2]
[335901115,1724578246924,-1082.15,0.00010989,2]
[335901116,1724578246935,-1082.15,0.00010989,2]
[335901117,1724578246946,-632.33,0.00010989,2]
[335901118,1724578246957,-500.0,0.00010989,2]
[335901119,1724578246967,-500.0,0.00010989,2]
[335901120,1724578246978,-500.0,0.00010989,2]
[335901121,1724578246988,-500.0,0.00010989,2]
[335901122,1724578246999,-1559.79,0.00010989,2]
[335901123,1724578247010,-1559.79,0.00010989,2]
[335901124,1724578247021,-1559.79,0.00010989,2]
[335901125,1724578247031,-500.0,0.00010989,2]
[335901126,1724578247042,-500.0,0.00010989,2]
[335901127,1724578247053,-500.0,0.00010989,2]
[335901128,1724578247063,-500.0,0.00010989,2]
[335901129,1724578247074,-500.0,0.00010989,2]
[335901130,1724578247084,-500.0,0.00010989,2]
[335901131,1724578247095,-500.0,0.00010989,2]
[335901132,1724578247106,-2621.58,0.00010989,2]
[335901133,1724578247116,-2621.58,0.00010989,2]
[335901134,1724578247127,-2621.58,0.00010989,2]
[335901135,1724578247137,-500.0,0.00010989,2]
[335901136,1724578247147,-582.44955328,0.00010989,2]
[335901137,1724578247158,-898.05,0.00010989,2]
[335901138,1724578247168,-898.05,0.00010989,2]
[335901139,1724578247179,-898.05,0.00010989,2]
[335901140,1724578247190,-500.0,0.00010989,2]
[335901141,1724578247200,-500.0,0.00010989,2]
[335901142,1724578247211,-500.0,0.00010989,2]
[335901143,1724578247221,-500.0,0.00010989,2]
[335901144,1724578247231,-500.0,0.00010989,2]
[335901145,1724578247241,-500.0,0.00010989,2]
[335901146,1724578247251,-500.0,0.00010989,2]
[335901147,1724578247262,-500.0,0.00010989,2]
[335901148,1724578247272,-500.0,0.00010989,2]
[335901149,1724578247283,-500.0,0.00010989,2]
[335901150,1724578247293,-1433.66,0.00010989,2]
[335901151,1724578247303,-1433.66,0.00010989,2]
[335901152,1724578247314,-1433.66,0.00010989,2]
[335901153,1724578247327,-19601.24550418,0.0001099,3]
[335901154,1724578247340,-3000.0,0.0001099,3]
[335901161,1724578391900,507.633439,0.00025,120]
[335901162,1724578396628,505.121913,0.00025,120]
[335901163,1724578400022,500.0,0.00024932,120]
[335901164,1724578402803,203.440057,0.00025,120]
[335901165,1724578446616,150.0,9.559e-05,2]
[335901166,1724578453350,150.0,9.559e-05,2]
[335901167,1724578454844,150.0,9.559e-05,2]
[335901168,1724578456278,150.0,9.559e-05,2]
[335901169,1724578480140,150.0,9.665e-05,2]
[335901170,1724578485179,150.0,9.665e-05,2]
[335901171,1724578486768,150.0,9.665e-05,2]
[335901172,1724578494960,150.0,9.665e-05,2]
[335901173,1724578496771,150.0,9.665e-05,2]
[335901174,1724578498301,150.0,9.665e-05,2]
[335901175,1724578499597,150.0,9.665e-05,2]
[335901176,1724578501037,150.0,9.665e-05,2]
[335901177,1724578502288,150.0,9.665e-05,2]
[335901178,1724578530666,500.0,9.665e-05,2]
[335901179,1724578619337,803.2,9.969e-05,2]
[335901180,1724578628962,185.81,9.969e-05,2]
[335901181,1724578769795,345.64,8.219e-05,2]
[335901184,1724578938198,155.0,9.962e-05,2]
[335901188,1724579001865,150.0,0.00027,120]
[335901190,1724579026342,894.43,0.00027,120]
[335901191,1724579068370,6045.77763357,9.424e-05,2]
[335901192,1724579084541,1050.0,0.0001,2]
[335901193,1724579121060,326.65,9.925e-05,2]
[335901194,1724579210855,602.17,9.92e-05,2]
[335901195,1724579216836,155.0,9.999e-05,2]
[335901196,1724579248791,1000.0,9.915e-05,2]
[335901197,1724579257027,264.75871737,9.999e-05,2]
[335901198,1724579287502,1500.0,9.999e-05,2]
[335901199,1724579290517,439.4227239,9.999e-05,2]
[335901206,1724579308600,2364.2168227,9.999e-05,2]
[335901221,1724579403289,155.57362479,9.999e-05,2]
[335901233,1724579432167,-526.89163581,0.00010097,2]
[335901235,1724579432177,-2000.0,0.000101,2]
[335901237,1724579432186,-345.64,0.00010474,2]
[335901239,1724579432196,-795.0,0.00010502,2]
[335901241,1724579432207,-191.386007,0.00010645,2]
[335901243,1724579432216,-150.0,0.00010685,2]
[335901245,1724579432228,-150.0,0.00010767,2]
[335901248,1724579432238,-150.0,0.00010808,2]
[335901250,1724579432248,-150.0,0.00010825,2]
[335901252,1724579432257,-150.0,0.0001083,2]
[335901254,1724579432267,-639.6717,0.00010858,2]
[335901255,1724579432276,-687.72110596,0.00010861,2]
[335901256,1724579432285,-305.10573782,0.00010861,2]
[335901257,1724579432295,-786.30232,0.0001088,2]
[335901258,1724579432304,-180.06437265,0.00010888,2]
[335901259,1724579432313,-150.0,0.00010888,2]
[335901260,1724579432323,-131531.8083,0.00010889,2]
[335901261,1724579432332,-1553.18565342,0.0001089,2]
[335901262,1724579432341,-164.14081489,0.0001089,2]
[335901263,1724579432350,-256.3785692,0.0001089,2]
[335901264,1724579432360,-155.14790047,0.0001089,2]
[335901265,1724579432369,-2603.5231,0.0001089,2]
[335901266,1724579432378,-1806.57313413,0.00010898,2]
[335901267,1724579432387,-446.16107072,0.00010899,2]
[335901268,1724579432396,-1806.57313413,0.00010899,2]
[335901269,1724579432406,-446.16107072,0.00010899,2]
[335901270,1724579432415,-446.16107072,0.00010899,2]
[335901271,1724579432424,-446.16107072,0.00010899,2]
[335901272,1724579432433,-446.16107072,0.00010899,2]
[335901273,1724579432442,-446.16107072,0.00010899,2]
[335901274,1724579432452,-446.16107072,0.00010899,2]
[335901275,1724579432462,-446.16107072,0.00010899,2]
[335901276,1724579432475,-446.16107072,0.00010899,2]
[335901277,1724579432484,-1806.57313413,0.000109,2]
[335901278,1724579432493,-1000.0,0.000109,2]
[335901279,1724579432504,-446.16107072,0.000109,2]
[335901280,1724579432514,-150.56267527,0.00010932,2]
[335901281,1724579432523,-664.105662,0.00010958,2]
[335901282,1724579432532,-664.105662,0.00010958,2]
[335901283,1724579432542,-664.105662,0.00010958,2]
[335901284,1724579432551,-664.105662,0.00010958,2]
[335901285,1724579432560,-664.105662,0.00010958,2]
[335901286,1724579432569,-664.105662,0.00010958,2]
[335901287,1724579432578,-358.68203642,0.00010958,2]
[335901289,1724579432604,-305.42362558,0.00010958,2]
[335901291,1724579432613,-2.64072791,0.00010958,2]
[335901293,1724579432634,-661.46493409,0.00010958,2]
[335901294,1724579432644,-664.105662,0.00010958,2]
[335901295,1724579432653,-332.052831,0.00010958,2]
[335901296,1724579432662,-332.052831,0.00010958,2]
[335901297,1724579432672,-332.052831,0.00010958,2]
[335901298,1724579432686,-332.052831,0.00010958,2]
[335901300,1724579432695,-332.052831,0.00010958,2]
[335901302,1724579432705,-332.052831,0.00010958,2]
[335901304,1724579432715,-332.052831,0.00010958,2]
[335901306,1724579432735,-332.052831,0.00010958,2]
[335901308,1724579432744,-332.052831,0.00010958,2]
[335901310,1724579432754,-221.2,0.00010959,2]
[335901311,1724579432765,-2000.0,0.00010959,2]
[335901312,1724579432775,-150.0,0.00010967,2]
[335901313,1724579432784,-664.105662,0.00010986,2]
[335901314,1724579432793,-332.052831,0.00010986,2]
[335901315,1724579432802,-500.0,0.00010986,2]
[335901316,1724579432811,-500.0,0.00010986,2]
[335901317,1724579432821,-500.0,0.00010986,2]
[335901318,1724579432831,-500.0,0.00010986,2]
[335901319,1724579432840,-500.0,0.00010986,2]
[335901320,1724579432850,-500.0,0.00010986,2]
[335901321,1724579432859,-500.0,0.00010986,2]
[335901322,1724579432869,-500.0,0.00010986,2]
[335901323,1724579432878,-500.0,0.00010986,2]
[335901324,1724579432888,-500.0,0.00010986,2]
[335901325,1724579432899,-126.59789578,0.00010986,2]
[335901332,1724579438169,-473.19276624,0.0001089,2]
[335901334,1724579438178,-163.49649437,0.000109,2]
[335901336,1724579438188,-163.49649435,0.000109,2]
[335901338,1724579438198,-373.40210422,0.00010986,2]
[335901339,1724579438208,-569.82,0.00010986,2]
[335901340,1724579438217,-500.0,0.00010986,2]
[335901341,1724579438226,-500.0,0.00010986,2]
[335901342,1724579438235,-500.0,0.00010986,2]
[335901343,1724579438245,-500.0,0.00010986,2]
[335901344,1724579438254,-500.0,0.00010986,2]
[335901345,1724579438263,-500.0,0.00010986,2]
[335901346,1724579438272,-500.0,0.00010986,2]
[335901347,1724579438281,-500.0,0.00010986,2]
[335901348,1724579438290,-500.0,0.00010986,2]
[335901349,1724579438300,-771.31,0.00010986,2]
[335901350,1724579438309,-500.0,0.00010986,2]
[335901351,1724579438318,-500.0,0.00010986,2]
[335901352,1724579438327,-500.0,0.00010986,2]
[335901353,1724579438337,-500.0,0.00010986,2]
[335901354,1724579438346,-500.0,0.00010986,2]
[335901355,1724579438356,-500.0,0.00010986,2]
[335901356,1724579438365,-500.0,0.00010986,2]
[335901357,1724579438375,-500.0,0.00010986,2]
[335901358,1724579438384,-244.96442994,0.00010986,2]
[335901359,1724579438393,-500.0,0.00010987,2]
[335901360,1724579438403,-674.24,0.00010987,2]
[335901361,1724579438412,-500.0,0.00010987,2]
[335901362,1724579438421,-500.0,0.00010987,2]
[335901363,1724579438430,-500.0,0.00010987,2]
[335901364,1724579438439,-500.0,0.00010987,2]
[335901365,1724579438448,-500.0,0.00010987,2]
[335901366,1724579438457,-500.0,0.00010987,2]
[335901367,1724579438467,-500.0,0.00010987,2]
[335901368,1724579438476,-500.0,0.00010987,2]
[335901369,1724579438485,-500.0,0.00010987,2]
[335901370,1724579438494,-500.0,0.00010987,2]
[335901371,1724579438504,-500.0,0.00010987,2]
[335901372,1724579438513,-500.0,0.00010987,2]
[335901373,1724579438522,-500.0,0.00010987,2]
[335901374,1724579438531,-500.0,0.00010987,2]
[335901375,1724579438541,-500.0,0.00010987,2]
[335901376,1724579438550,-626.47,0.00010987,2]
[335901377,1724579438559,-500.0,0.00010987,2]
[335901378,1724579438568,-500.0,0.00010987,2]
[335901379,1724579438578,-500.0,0.00010987,2]
[335901380,1724579438587,-500.0,0.00010987,2]
[335901381,1724579438596,-500.0,0.00010987,2]
[335901382,1724579438606,-809.59,0.00010987,2]
[335901383,1724579438615,-500.0,0.00010987,2]
[335901384,1724579438624,-500.0,0.00010987,2]
[335901386,1724579438633,-500.0,0.00010987,2]
[335901387,1724579438642,-500.0,0.00010987,2]
[335901389,1724579438652,-500.0,0.00010987,2]
[335901391,1724579438662,-500.0,0.00010987,2]
[335901393,1724579438671,-500.0,0.00010987,2]
[335901395,1724579438680,-500.0,0.00010987,2]
[335901397,1724579438693,-500.0,0.00010987,2]
[335901399,1724579438702,-500.0,0.00010987,2]
[335901401,1724579438712,-500.0,0.00010987,2]
[335901402,1724579438721,-500.0,0.00010987,2]
[335901403,1724579438730,-500.0,0.00010987,2]
[335901404,1724579438740,-500.0,0.00010987,2]
[335901405,1724579438749,-500.0,0.00010987,2]
[335901406,1724579438758,-500.0,0.00010987,2]
[335901407,1724579438768,-500.0,0.00010987,2]
[335901408,1724579438778,-500.0,0.00010987,2]
[335901409,1724579438787,-500.0,0.00010987,2]
[335901410,1724579438796,-500.0,0.00010987,2]
[335901411,1724579438805,-500.0,0.00010987,2]
[335901412,1724579438814,-500.0,0.00010987,2]
[335901413,1724579438823,-575.68,0.00010987,2]
[335901414,1724579438831,-500.0,0.00010987,2]
[335901415,1724579438840,-500.0,0.00010987,2]
[335901416,1724579438849,-500.0,0.00010987,2]
[335901417,1724579438858,-500.0,0.00010987,2]
[335901418,1724579438868,-500.0,0.00010987,2]
[335901419,1724579438877,-500.0,0.00010987,2]
[335901420,1724579438886,-500.0,0.00010987,2]
[335901421,1724579438895,-500.0,0.00010987,2]
[335901422,1724579438904,-500.0,0.00010987,2]
[335901423,1724579438913,-500.0,0.00010987,2]
[335901424,1724579438922,-500.0,0.00010987,2]
[335901425,1724579438931,-500.0,0.00010987,2]
[335901426,1724579438940,-500.0,0.00010987,2]
[335901427,1724579438949,-500.0,0.00010987,2]
[335901428,1724579438958,-500.0,0.00010987,2]
[335901429,1724579438968,-500.0,0.00010987,2]
[335901430,1724579438977,-1299.83,0.00010987,2]
[335901431,1724579438986,-500.0,0.00010987,2]
[335901432,1724579438995,-500.0,0.00010987,2]
[335901433,1724579439004,-500.0,0.00010987,2]
[335901434,1724579439015,-500.0,0.00010987,2]
[335901435,1724579439024,-500.0,0.00010987,2]
[335901436,1724579439033,-500.0,0.00010987,2]
[335901437,1724579439043,-500.0,0.00010987,2]
[335901438,1724579439052,-500.0,0.00010987,2]
[335901439,1724579439061,-500.0,0.00010987,2]
[335901440,1724579439071,-2184.65,0.00010987,2]
[335901441,1724579439080,-500.0,0.00010987,2]
[335901442,1724579439090,-500.0,0.00010987,2]
[335901443,1724579439099,-500.0,0.00010987,2]
[335901444,1724579439109,-517.3,0.00010987,2]
[335901445,1724579439118,-748.37,0.00010987,2]
[335901446,1724579439128,-500.0,0.00010987,2]
[335901447,1724579439138,-500.0,0.00010987,2]
[335901448,1724579439147,-500.0,0.00010987,2]
[335901449,1724579439157,-500.0,0.00010987,2]
[335901450,1724579439165,-500.0,0.00010987,2]
[335901451,1724579439175,-259.62438915,0.00010987,2]
[335901452,1724579439184,-500.0,0.00010987,2]
[335901453,1724579439193,-407.44,0.00010987,2]
[335901454,1724579439203,-500.0,0.00010987,2]
[335901455,1724579439213,-500.0,0.00010987,2]
[335901456,1724579439222,-500.0,0.00010987,2]
[335901457,1724579439237,-247.12,0.00010987,2]
[335901458,1724579439246,-500.0,0.00010987,2]
[335901459,1724579439255,-500.0,0.00010987,2]
[335901460,1724579439264,-500.0,0.00010987,2]
[335901461,1724579439273,-829.11,0.00010987,2]
[335901462,1724579439283,-268.87815884,0.00010987,2]
[335901463,1724579439296,-231.12184116,0.00010987,2]
[335901464,1724579439305,-500.0,0.00010987,2]
[335901465,1724579439315,-587.91273407,0.00010987,2]
[335901466,1724579439326,-378.42726593,0.00010987,2]
[335901467,1724579439335,-211.41997582,0.00010987,2]
[335901468,1724579439344,-191.62884956,0.00010987,2]
[335901469,1724579439365,-1439.35583078,0.00010987,2]
[335901470,1724579439376,-1599.21665465,0.00010987,2]
[335901471,1724579439387,-333.20866501,0.00010987,2]
[335901472,1724579439396,-500.0,0.00010987,2]
[335901473,1724579439405,-500.0,0.00010987,2]
[335901474,1724579439414,-19.59468358,0.00010987,2]
[335901475,1724579439427,-480.40531642,0.00010987,2]
[335901476,1724579439437,-89.83154083,0.00010987,2]
[335901477,1724579439449,-534.2315575,0.00010987,2]
[335901478,1724579439472,-157.15690167,0.00010987,2]
[335901479,1724579439482,-500.0,0.00010987,2]
[335901480,1724579439492,-500.0,0.00010987,2]
[335901481,1724579439503,-204.9909988,0.00010987,2]
[335901482,1724579439516,-1095.8090012,0.00010987,2]
[335901483,1724579439526,-500.0,0.00010987,2]
[335901484,1724579439535,-207.71964964,0.00010987,2]
[335901485,1724579439546,-292.28035036,0.00010987,2]
[335901486,1724579439555,-500.0,0.00010987,2]
[335901487,1724579439564,-500.0,0.00010987,2]
[335901488,1724579439574,-500.0,0.00010987,2]
[335901489,1724579439583,-143.14952821,0.00010987,2]
[335901490,1724579439595,-773.53047179,0.00010987,2]
[335901491,1724579439604,-839.39779547,0.00010987,2]
[335901492,1724579439631,-1593.24220453,0.00010987,2]
[335901493,1724579439640,-500.0,0.00010987,2]
[335901494,1724579439649,-786.47,0.00010987,2]
[335901495,1724579439658,-283.5795736,0.00010987,2]
[335901496,1724579439670,-216.4204264,0.00010987,2]
[335901497,1724579439679,-100.10639533,0.00010987,2]
[335901498,1724579439694,-399.89360467,0.00010987,2]
[335901499,1724579439703,-559.60319176,0.00010987,2]
[335901500,1724579440237,-557.38108761,0.00010987,2]
[335901501,1724579440435,-966.25572063,0.00010987,2]
[335901502,1724579440445,-846.7,0.00010987,2]
[335901503,1724579440455,-500.0,0.00010987,2]
[335901504,1724579440465,-1216.11,0.00010987,2]
[335901505,1724579440474,-500.0,0.00010987,2]
[335901506,1724579440484,-500.0,0.00010987,2]
[335901507,1724579440494,-500.0,0.00010987,2]
[335901508,1724579440504,-1295.15,0.00010987,2]
[335901509,1724579440514,-5162.98,0.00010987,2]
[335901510,1724579440523,-1220.68,0.00010987,2]
[335901511,1724579440533,-500.0,0.00010987,2]
[335901512,1724579440543,-500.0,0.00010987,2]
[335901513,1724579440552,-500.0,0.00010987,2]
[335901514,1724579440562,-1411.48,0.00010987,2]
[335901515,1724579440572,-500.0,0.00010987,2]
[335901516,1724579440581,-500.0,0.00010987,2]
[335901517,1724579440590,-500.0,0.00010987,2]
[335901518,1724579440600,-1001.64,0.00010987,2]
[335901519,1724579440610,-500.0,0.00010987,2]
[335901520,1724579440620,-168.52309582,0.00010987,2]
[335901521,1724579440629,-500.0,0.00010987,2]